{"text_format":"1","workbook":"xlsx","n_sheets":6,"sheets":["Eindtotaal","Info","model 1","model 2","model 3","model 4"],"not_rendered":{"charts":0,"images":1,"macros":1,"external_links":0,"defined_names":7,"comments":1,"pivot_tables":0},"unopened":[],"bounds":{"document_bytes":16777216,"sheet_cells":100000,"rows_first":2000,"rows_last":500,"rows_between":2000,"halvings":0,"cell_chars":16384,"cell_head_chars":4096},"cells_cut":0,"cells_raw":0,"read":"whole","date_system":"1900"}

{"sheet":"Eindtotaal","index":0,"n_rows":33,"n_cols":13,"rows_kept":33,"cut":false,"hidden":false,"merged":[[13,3,13,7],[10,2,10,5],[0,1,0,3],[1,1,1,3],[3,1,3,2],[3,3,3,7],[9,3,9,7],[9,1,9,2],[4,3,4,7],[5,3,5,7],[6,3,6,7],[7,3,7,7],[8,3,8,7],[2,1,2,7],[19,7,20,7],[21,7,22,7],[24,7,25,7],[11,3,11,7],[12,3,12,7],[19,2,19,5],[21,2,21,5],[20,2,20,6],[22,2,22,6],[25,2,25,6],[11,1,11,2],[15,3,15,7],[14,1,14,2],[14,3,14,7],[15,1,15,2],[13,1,13,2],[32,1,32,3],[32,4,32,7],[23,2,23,5],[30,1,30,5],[31,1,31,7],[29,1,29,5],[28,1,28,7],[26,2,26,5],[24,2,24,5]]}
[]
[null,"Beoordelingsformulier"]
[null,"Praktijkbeoordeling 'Het kind centraal'"]
[null,"Naam student:",null,{"$f":"Info!D4","v":0},null,null,null,null,"ja","totaal",200,null,"Proberen iets in te zetten dat deze onderdelen verplicht zijn!"]
[null,"Praktijkinstelling",null,{"$f":"Info!D5","v":0},null,null,null,null,null,null,null,null,"Niets open laten"]
[null,"Plaats:",null,{"$f":"Info!D6","v":0}]
[null,"Sector:",null,{"$f":"Info!D7","v":0}]
[null,"Naam praktijkbegeleider:",null,{"$f":"Info!D8","v":0}]
[null,"Leeftijdsgroep:",null,{"$f":"Info!D9","v":0}]
[null,"Aantal deelnemers:",null,{"$f":"Info!D10","v":0},null,null,null,null,"nee",null,0]
[null,null,null,null,null,null,null,null,null,"voldoende",120,{"$f":"K11-1","v":119}]
[null,"Iselinge klas:",null,{"$f":"Info!D12","v":0},null,null,null,null,null,"goed",160,{"$f":"K12-1","v":159}]
[null,"Naam praktijkbeoordelaar:",null,{"$f":"Info!D13","v":0},null,null,null,null,"Geldige scoringsvoorschriften",null,null,"Aanbod"]
[null,"Datum van beoordeling:",null,{"$f":"Info!D14","v":"00:00:00"}]
[null,"Toetscode:",null,"PEP1-PRAPE2-V25",null,null,null,null,"0 punten","0 punten","0 punten",1]
[null,"Aantal te behalen punten:",null,200,null,null,null,null,"1 punt","2 punten","3 punten",2]
[null,"Cesuur: ",null,"voldoende vanaf",120,"punten",null,null,"2 punten","4 punten","6 punten",3]
[null,null,null,"goed vanaf ",160,"punten",null,null,"3 punten","6 punten","9 punten",4]
[null,null,null,null,null,null,null,"Score","4 punten","8 punten","12 punten"]
[null,"1.","De beroepshouding",null,null,null,null,{"$f":"'model 1'!B54","v":0}]
[null,null,"Indien de student minder dan 24 punten heeft behaald is de praktijkbeoordeling onvoldoende"]
[null,"2.","Het praktijkproces",null,null,null,null,{"$f":"'model 2'!D46","v":0},null,null,null,null,"Let op voorwaarde!"]
[null,null,"Indien de student minder dan 60 punten heeft behaald is de praktijkbeoordeling onvoldoende"]
[null,"3.","De activiteit",null,null,null,null,{"$f":"'model 3'!D47","v":0}]
[null,"4.","Het reflectief gesprek  ",null,null,null,null,{"$f":"'model 4'!D24","v":0}]
[null,null,null,null,null,null,null,null,null,null,null,null,"Let op voorwaarde!"]
[]
[null,"Totaal aantal behaalde punten",null,null,null,null,null,{"$f":"SUM(H20:H26)","v":0},{"$f":"AND(H20>23)","v":false},{"$f":"AND(H22>59)","v":false},null,null,"Indien niet alle modellen zijn ingevuld moet dat hier komen te staan."]
[null,{"$f":"IF(I30=FALSE,\"Onderdeel 1 en/of 2 is onvoldoende.\",\" \")","v":"Onderdeel 1 en/of 2 is onvoldoende."}]
[null,"Oordeel",null,null,null,null,null,{"$f":"IF(J30=FALSE,\"Onvoldoende\",IF(H28<E17,\"Onvoldoende\",IF(H28>=E18,\"Goed\",\"Voldoende\")))","v":"Onvoldoende"},{"$f":"AND(I28=TRUE,J28=TRUE)","v":false},{"$f":"AND(I28=TRUE,J28=TRUE)","v":false},null,null,"Wellicht kan hier vermeld worden wat de te volgen stappen zijn indien onvoldoende?"]
[null,"Opmerkingen",null,null,null,null,null,null,null,null,null,null,"Kan ook bij voldoende…"]
[]
[null,"Akkoord beoordelaar",null,null,"0-119 = onvoldoende    120-159 = voldoende    160-200 = goed"]

{"sheet":"Info","index":1,"n_rows":31,"n_cols":15,"rows_kept":31,"cut":false,"hidden":false,"merged":[[28,2,28,7],[30,2,30,7],[19,1,19,7],[20,2,20,7],[22,2,22,7],[24,2,24,7],[26,2,26,7],[0,1,0,3],[1,1,1,3],[2,1,2,7],[3,1,3,2],[3,3,3,7],[4,3,4,7],[12,3,12,7],[13,3,13,7],[11,1,11,2],[11,3,11,7],[8,3,8,7],[7,3,7,7],[6,3,6,7],[5,3,5,7],[13,1,13,2],[12,1,12,2],[10,2,10,5],[9,3,9,7],[9,1,9,2]]}
[]
[null,"Beoordelingsformulier"]
[null,"Praktijkbeoordeling 'Het kind centraal"]
[null,"Naam student:",null,null,null,null,null,null,"ja","totaal",160]
[null,"Praktijkinstelling:"]
[null,"Plaats:"]
[null,"Sector:"]
[null,"Naam praktijkbegeleider:"]
[null,"Leeftijdsgroep:"]
[null,"Aantal deelnemers:",null,null,null,null,null,null,"nee",null,0]
[null,null,null,null,null,null,null,null,null,"voldoende",96,{"$f":"K11-1","v":95}]
[null,"Iselinge klas:",null,null,null,null,null,null,null,"goed",128,{"$f":"K12-1","v":127}]
[null,"Naam praktijkbeoordelaar:",null,null,null,null,null,null,"Geldige scoringsvoorschriften",null,null,"Aanbod"]
[null,"Datum van beoordeling:"]
[]
[null,"De beoordeling in de stage bestaat uit een tussenbeoordeling en een praktijkbeoordeling."]
[]
[null,"Praktijkbeoordeling",null,null,null,null,null,null,null,null,null,null,null,null," "]
[]
[null,"De praktijkbeoordeling wordt uitgevoerd door een praktijkbeoordelaar.\nAlle beoordelingsmodellen worden onder verantwoordelijkheid van de beoordelaar ingevuld. Het doel van de praktijkbeoordeling is een eindoordeel te geven over de stage. De werkwijze is als volgt:\n"]
[null,"1.","De praktijkbegeleider vult voorafgaand aan de beoordeling van de uitvoering van de activiteit beoordelingsmodel 1 (de beroepshouding) en beoordelingsmodel 2 (het praktijkproces) van de praktijkbeoordeling in.."]
[]
[null,"2.","In overleg met de praktijkbegeleider beoordeelt de praktijkbeoordelaar beoordelingsmodel 1 (de beroepshouding) en beoordelingsmodel 2 (het praktijkproces)."]
[]
[null,"3.","De praktijkbeoordelaar vult beoordelingsmodel 3 (de activiteit) en beoordelingsmodel 4 (het gesprek) in."]
[]
[null,"4.","Op basis van de vier ingevulde beoordelingsmodellen bepaalt de beoordelaar het eindoordeel."]
[]
[null,"5.","Het eindoordeel en de beoordelingsmodellen worden door de beoordelaar besproken met de student."]
[]
[null,"6.","In geval van een onvoldoende praktijkbeoordeling heeft de student recht op één herbeoordeling. De herbeoordeling wordt toegekend na overleg met de examencommissie, waarna het stagebureau contact legt met een examinator, anders dan de eerste beoordelaar."]

{"sheet":"model 1","index":2,"n_rows":58,"n_cols":10,"rows_kept":58,"cut":false,"hidden":false,"merged":[[57,1,57,5],[56,1,56,5],[43,1,46,1],[43,2,46,2],[43,5,46,5],[52,1,52,2],[48,1,49,1],[48,2,49,2],[48,5,49,5],[16,1,19,1],[16,2,19,2],[16,5,19,5],[21,1,23,1],[21,2,23,2],[21,5,23,5],[8,1,10,1],[8,2,10,2],[8,5,10,5],[12,1,14,1],[12,2,14,2],[12,5,14,5],[0,1,0,2],[0,3,0,5],[1,1,1,2],[1,3,1,5],[3,1,3,5],[2,1,2,5],[35,1,37,1],[35,2,37,2],[35,5,37,5],[39,1,41,1],[25,1,28,1],[25,2,28,2],[25,5,28,5],[30,1,33,1],[30,2,33,2],[30,5,33,5],[39,2,41,2],[39,5,41,5]]}
[null,"Naam student:",null,{"$f":"Eindtotaal!D4","v":0}]
[null,"Klas Iselinge:",null,{"$f":"Eindtotaal!D12","v":0}]
[null,"Beoordelingsmodel 1: Beroepshouding"]
[null,"Dit beoordelingsmodel wordt tweemaal ingevuld: de eerste keer als tussenevaluatie, de tweede keer als onderdeel van de praktijkbeoordeling."]
[]
[]
[null,"Beoordelingsaspecten",null,"Je kunt denken aan:",null,"Score"]
[]
[null,"1.","Je hebt een professionele beroepshouding","je bent op tijd",null,null,{"$f":"COUNTIF(F9,\"1 punt\")*1","v":0},{"$f":"COUNTIF(F9,\"2 punten\")*2","v":0},{"$f":"COUNTIF(F9,\"3 punten\")*3","v":0},{"$f":"COUNTIF(F9,\"4 punten\")*4","v":0}]
[null,null,null,"je communiceert helder"]
[null,null,null,"je komt je afspraken na"]
[]
[null,"2.","Je hebt een sensitieve en responsieve houding","je leeft je in in de kinderen en volwassenen waar je \nmee werkt",null,null,{"$f":"COUNTIF(F13,\"1 punt\")*1","v":0},{"$f":"COUNTIF(F13,\"2 punten\")*2","v":0},{"$f":"COUNTIF(F13,\"3 punten\")*3","v":0},{"$f":"COUNTIF(F13,\"4 punten\")*4","v":0}]
[null,null,null,"je reageert correct en passend "]
[null,null,null,"je geeft complimenten"]
[]
[null,"3.","Je houdt rekening met de basisbehoeften van kinderen","je weet wat de basisbehoeften van kinderen zijn",null,null,0,0,0,0]
[null,null,null,"je biedt kinderen de mogelijkheid te ervaren wat ze \nkunnen (competentie)"]
[null,null,null,"je biedt ruimte aan kinderen om te keuzes te maken en dingen zelf te doen (autonomie)"]
[null,null,null,"je investeert in een goede relatie met de kinderen"]
[]
[null,"4.","Je realiseert een veilige, ontwikkelingsgerichte omgeving","je weet waaraan een veilige omgeving voldoet",null,null,{"$f":"COUNTIF(F22,\"1 punt\")*1","v":0},{"$f":"COUNTIF(F22,\"2 punten\")*2","v":0},{"$f":"COUNTIF(F22,\"3 punten\")*3","v":0},{"$f":"COUNTIF(F22,\"4 punten\")*4","v":0}]
[null,null,null,"je hebt permanent oog voor veiligheid "]
[null,null,null,"je richt de omgeving zo in dat het ten goede komt aan de ontwikkeling van kinderen"]
[]
[null,"5.","Je zoekt mogelijkheden voor verbetering en innovatie","je analyseert de huidige situatie",null,null,0,0,0,0]
[null,null,null,"je onderzoekt waar knelpunten liggen"]
[null,null,null,"je onderzoekt welke mogelijkheden voor verbetering en innovatie er zijn"]
[null,null,null,"je adviseert op gepaste wijze mogelijkheden voor \nverbetering en innovatie"]
[]
[null,"6.","Je ziet wat nodig is om de pedagogisch kwaliteit te verbeteren","je analyseert de huidige situatie",null,null,{"$f":"COUNTIF(F31,\"1 punt\")*1","v":0},{"$f":"COUNTIF(F31,\"2 punten\")*2","v":0},{"$f":"COUNTIF(F31,\"3 punten\")*3","v":0},{"$f":"COUNTIF(F31,\"4 punten\")*4","v":0}]
[null,null,null,"je onderzoekt waar knelpunten liggen"]
[null,null,null,"je onderzoekt welke mogelijkheden er zijn om de pedagogische kwaliteit te verbeteren"]
[null,null,null,"je adviseert op gepaste wijze mogelijkheden om de pedagogische kwaliteit te verbeteren"]
[]
[null,"7.","Je kunt een casus van verschillende kanten bekijken","je analyseert een casus grondig voor je er uitspraken \nover doet",null,null,{"$f":"COUNTIF(F36,\"1 punt\")*1","v":0},{"$f":"COUNTIF(F36,\"2 punten\")*2","v":0},{"$f":"COUNTIF(F36,\"3 punten\")*3","v":0},{"$f":"COUNTIF(F36,\"4 punten\")*4","v":0}]
[null,null,null,"je kunt je verplaatsen in de mening van anderen"]
[null,null,null,"je stelt je mening bij wanneer nodig"]
[]
[null,"8.","Je werkt planmatig","je plant en organiseert je werk op overzichtelijke \nwijze",null,null,{"$f":"COUNTIF(F40,\"1 punt\")*1","v":0},{"$f":"COUNTIF(F40,\"2 punten\")*2","v":0},{"$f":"COUNTIF(F40,\"3 punten\")*3","v":0},{"$f":"COUNTIF(F40,\"4 punten\")*4","v":0}]
[null,null,null,"je maakt je werk inzichtelijk voor anderen"]
[null,null,null,"je werkt planmatig aan je eigen ontwikkeling"]
[]
[null,"9.","Je denkt oplossingsgericht","je kunt een gepresenteerd probleem analyseren en op urgentie beoordelen",null,null,{"$f":"COUNTIF(F44,\"1 punt\")*1","v":0},{"$f":"COUNTIF(F44,\"2 punten\")*2","v":0},{"$f":"COUNTIF(F44,\"3 punten\")*3","v":0},{"$f":"COUNTIF(F44,\"4 punten\")*4","v":0}]
[null,null,null,"je onderzoekt welke oplossingen er zijn"]
[null,null,null,"je maakt gebruik van bronnen en experts"]
[null,null,null,"je presenteert oplossingen op passende wijze"]
[]
[null,"10.","Je past theorie toe in de praktijk","je laat zien dat je op de hoogte bent van actuele \nkennis",null,null,{"$f":"COUNTIF(F49,\"1 punt\")*1","v":0},{"$f":"COUNTIF(F49,\"2 punten\")*2","v":0},{"$f":"COUNTIF(F49,\"3 punten\")*3","v":0},{"$f":"COUNTIF(F49,\"4 punten\")*4","v":0}]
[null,null,null,"je vertaalt actuele kennis naar de praktijk"]
[]
[]
[null,"Totaalscore: (max.40)"]
[null,{"$f":"SUM(G9:J51)","v":0},"punten"]
[]
[null,"Opmerkingen"]
[]
[null,"Akkoord beoordelaar"]

{"sheet":"model 2","index":3,"n_rows":50,"n_cols":10,"rows_kept":50,"cut":false,"hidden":false,"merged":[[6,2,8,2],[6,1,8,1],[6,5,8,5],[3,1,3,5],[0,1,0,2],[0,3,0,5],[1,1,1,2],[1,3,1,5],[2,1,2,5],[48,1,48,5],[44,1,44,2],[10,1,11,1],[10,2,11,2],[10,5,11,5],[13,1,15,1],[13,2,15,2],[13,5,15,5],[17,1,18,1],[17,2,18,2],[17,5,18,5],[20,1,22,1],[37,5,38,5],[37,1,38,1],[49,1,49,5],[20,5,22,5],[24,1,26,1],[24,2,26,2],[24,5,26,5],[28,1,29,1],[28,2,29,2],[28,5,29,5],[31,1,35,1],[31,2,35,2],[31,5,35,5],[40,1,42,1],[40,2,42,2],[40,5,42,5],[37,2,38,2],[20,2,22,2]]}
[null,"Naam student:",null,{"$f":"Eindtotaal!D4","v":0}]
[null,"Klas Iselinge:",null,{"$f":"Eindtotaal!D12","v":0}]
[null,"Beoordelingsmodel 2: Het praktijkproces"]
[null,"Dit beoordelingsmodel wordt tweemaal ingevuld: de eerste keer als tussenevaluatie, de tweede keer als onderdeel van de praktijkbeoordeling."]
[null,"Beoordelingsaspecten",null,"Je kunt denken aan:",null,"Score"]
[]
[null,"1.","Je werkt proactief aan je ontwikkeling als pedagogisch educatief professional","je hebt persoonlijke leerdoelen geformuleerd",null,null,{"$f":"COUNTIF(F7,\"1 punt\")*1","v":0},{"$f":"COUNTIF(F7,\"2 punten\")*2","v":0},{"$f":"COUNTIF(F7,\"3 punten\")*3","v":0},{"$f":"COUNTIF(F7,\"4 punten\")*4","v":0}]
[null,null,null,"je onderneemt activiteiten die uitdagend voor je \nzijn"]
[null,null,null,"je werkt doelgericht aan je eigen ontwikkeling"]
[]
[null,"2.","Je brengt de ontwikkeling van het individuele kind in kaart","je laat zien dat je weet hoe kinderen zich op verschillende gebieden ontwikkelen",null,null,{"$f":"COUNTIF(F11,\"1 punt\")*1","v":0},{"$f":"COUNTIF(F11,\"2 punten\")*2","v":0},{"$f":"COUNTIF(F11,\"3 punten\")*3","v":0},{"$f":"COUNTIF(F11,\"4 punten\")*4","v":0}]
[null,null,null,"je neemt doelgericht waar in welke ontwikkelingsfase kinderen zich bevinden"]
[]
[null,"3.","Je ontwerpt en onderneemt activiteiten die de ontwikkeling van het individuele kind bevorderen","je gebruikt je waarnemingen en andere bronnen om de beginsituatie van kinderen te bepalen",null,null,{"$f":"COUNTIF(F14,\"1 punt\")*1","v":0},{"$f":"COUNTIF(F14,\"2 punten\")*2","v":0},{"$f":"COUNTIF(F14,\"3 punten\")*3","v":0},{"$f":"COUNTIF(F14,\"4 punten\")*4","v":0}]
[null,null,null,"je ontwerpt activiteiten die kinderen helpen stappen te zetten in hun ontwikkeling"]
[null,null,null,"je voert activiteiten uit die doelgericht de ontwikkeling van kinderen bevorderen"]
[]
[null,"4.","Je brengt het groepsklimaat in kaart","je laat zien dat je weet waar een gezond groepsklimaat aan voldoet",null,null,{"$f":"COUNTIF(F18,\"1 punt\")*1","v":0},{"$f":"COUNTIF(F18,\"2 punten\")*2","v":0},{"$f":"COUNTIF(F18,\"3 punten\")*3","v":0},{"$f":"COUNTIF(F18,\"4 punten\")*4","v":0}]
[" ",null,null,"je neemt doelgericht waar hoe het klimaat in een groep is"]
[]
[null,"5.","Je ontwerpt en onderneemt activiteiten die het groepsklimaat bevorderen","je gebruikt je waarnemingen en andere bronnen om te bepalen wat nodig is om het groepsklimaat te bevorderen",null,null,{"$f":"COUNTIF(F21,\"1 punt\")*1","v":0},{"$f":"COUNTIF(F21,\"2 punten\")*2","v":0},{"$f":"COUNTIF(F21,\"3 punten\")*3","v":0},{"$f":"COUNTIF(F21,\"4 punten\")*4","v":0}]
[null,null,null,"je ontwerpt activiteiten die het groepsklimaat \nbevorderen"]
[null,null,null,"je voert activiteiten uit die doelgericht het groepsklimaat bevorderen"]
[]
[null,"6.","Je stemt activiteiten af op de behoeften van het individuele kind en de groep als geheel","je laat zien dat je weet wat de behoeften van \nindividuele kinderen zijn",null,null,{"$f":"COUNTIF(F25,\"1 punt\")*1","v":0},{"$f":"COUNTIF(F25,\"2 punten\")*2","v":0},{"$f":"COUNTIF(F25,\"3 punten\")*3","v":0},{"$f":"COUNTIF(F25,\"4 punten\")*4","v":0}]
[null,null,null,"je laat zien dat je weet wat de behoefte van de \ngroep is"]
[null,null,null,"de activiteiten die je ontwerpt, organiseert en onderneemt sluiten aan bij de behoefte van het individuele kind en de groep"]
[]
[null,"7.","Je stemt je activiteiten af op de ontwikkelingsdoelen en houdt hierbij rekening met de verschillen en overeenkomsten tussen kinderen","je laat zien dat je weet welke verschillen en overeenkomsten er tussen kinderen zijn",null,null,{"$f":"COUNTIF(F29,\"1 punt\")*1","v":0},{"$f":"COUNTIF(F29,\"2 punten\")*2","v":0},{"$f":"COUNTIF(F29,\"3 punten\")*3","v":0},{"$f":"COUNTIF(F29,\"4 punten\")*4","v":0}]
[null,null,null,"je ontwerpt en onderneemt gedifferentieerde activiteiten die uitdagend zijn voor en ontwikkelkansen bieden aan de verschillende kinderen"]
[]
[null,8,"Je begeleiding past bij (de verschillen in) het ontwikkelingsniveau en gedrag van kinderen, en je signaleert behoefte aan specifieke zorg","je neemt de tijd om kinderen te observeren",null,null,{"$f":"COUNTIF(F32,\"1 punt\")*1","v":0},{"$f":"COUNTIF(F32,\"2 punten\")*2","v":0},{"$f":"COUNTIF(F32,\"3 punten\")*3","v":0},{"$f":"COUNTIF(F32,\"4 punten\")*4","v":0}]
[null,null,null,"je gebruikt observatie-instrumenten"]
[null,null,null,"je neemt verschillen in ontwikkelingsniveau en gedrag waar"]
[null,null,null,"je signaleert behoefte aan specifieke zorg"]
[null,null,null,"je ontwerpt en onderneemt begeleidingsactiviteiten die passen bij de gesignaleerde behoefte"]
[]
[null,9,"Je gebruikt recente bronnen bij het ontwerpen van activiteiten","je laat zien dat je keuzes baseert op bronnen",null,null,{"$f":"COUNTIF(F38,\"1 punt\")*1","v":0},{"$f":"COUNTIF(F38,\"2 punten\")*2","v":0},{"$f":"COUNTIF(F38,\"3 punten\")*3","v":0},{"$f":"COUNTIF(F38,\"4 punten\")*4","v":0}]
[null,null,null,"je weet recente en kwalitatief goede bronnen te \nselecteren"]
[]
[null,10,"Je evalueert ontworpen en ondernomen activiteiten","je evalueert ondernomen activiteiten",null,null,{"$f":"COUNTIF(F41,\"1 punt\")*1","v":0},{"$f":"COUNTIF(F41,\"2 punten\")*2","v":0},{"$f":"COUNTIF(F41,\"3 punten\")*3","v":0},{"$f":"COUNTIF(F41,\"4 punten\")*4","v":0}]
[null,null,null,"je formuleert op basis van de evaluatie aandachts-\npunten voor vervolgactiviteiten"]
[null,null,null,"je stelt waar nodig je (persoonlijke leer)doelen bij"]
[]
[null,"Totaalscore: (maximaal 40 x 2,5 =  ",null,"maximaal 100 punten)"]
[null,{"$f":"SUM(G7:J44)","v":0},"punten",{"$f":"B46*2.5","v":0}]
[]
[null,"Opmerkingen"]
[]
[null,"Akkoord beoordelaar"]

{"sheet":"model 3","index":4,"n_rows":50,"n_cols":10,"rows_kept":50,"cut":false,"hidden":false,"merged":[[48,1,48,5],[49,1,49,5],[45,1,45,3],[38,1,39,1],[38,2,39,2],[38,5,39,5],[41,1,43,1],[41,2,43,2],[41,5,43,5],[31,1,33,1],[31,2,33,2],[31,5,33,5],[35,1,36,1],[35,2,36,2],[35,5,36,5],[22,1,25,1],[22,2,25,2],[22,5,25,5],[27,1,29,1],[27,2,29,2],[27,5,29,5],[14,1,16,1],[14,2,16,2],[14,5,16,5],[18,1,20,1],[18,2,20,2],[18,5,20,5],[7,1,8,1],[7,2,8,2],[7,5,8,5],[10,1,12,1],[10,2,12,2],[10,5,12,5],[3,1,3,5],[0,1,0,2],[0,3,0,5],[1,1,1,2],[1,3,1,5],[2,1,2,5]]}
[null,"Naam student:",null,{"$f":"Eindtotaal!D4","v":0}]
[null,"Klas Iselinge:",null,{"$f":"Eindtotaal!D12","v":0}]
[null,"Beoordelingsmodel 3: De activiteit"]
[null,"V = beoordelen (mede) op basis van voorbereiding"]
[]
[null,"Beoordelingsaspecten",null,"Je kunt denken aan:",null,"Score"]
[]
[null,"1.\nV","In de activiteit en je voorbereiding laat je zien dat je aan je persoonlijke leerdoelen werkt","je hebt persoonlijke leerdoelen geformuleerd",null,null,{"$f":"COUNTIF(F8,\"1 punt\")*1","v":0},{"$f":"COUNTIF(F8,\"2 punten\")*2","v":0},{"$f":"COUNTIF(F8,\"3 punten\")*3","v":0},{"$f":"COUNTIF(F8,\"4 punten\")*4","v":0}]
[null,null,null,"tijdens de activiteit werk je zichtbaar aan je \nleerdoelen de activiteit is uitdagend voor je"]
[]
[null,"2.\nV","De activiteit is doordacht ontworpen en uitgevoerd","de activiteit heeft een pakkende inleiding",null,null,{"$f":"COUNTIF(F11,\"1 punt\")*1","v":0},{"$f":"COUNTIF(F11,\"2 punten\")*2","v":0},{"$f":"COUNTIF(F11,\"3 punten\")*3","v":0},{"$f":"COUNTIF(F11,\"4 punten\")*4","v":0}]
[null,null,null,"de verschillende onderdelen van de activiteit hebben \neen logische en evenwichtige opbouw"]
[null,null,null,"de organisatie van de activiteit is goed"]
[]
[null,"3.\nV","De activiteit sluit aan bij en bevordert de ontwikkeling van het individuele kind","je laat zien dat je weet hoe kinderen zich op \nverschillende gebieden ontwikkelen",null,null,0,0,0,0]
[null,null,null,"je hebt de beginsituatie van kinderen duidelijk \nbeschreven"]
[null,null,null,"je hebt een activiteit ontworpen die hierbij aansluit \nen kinderen helpt stappen te zetten in hun \nontwikkeling"]
[]
[null,"4.\nV","De activiteit sluit aan bij en bevordert het groepsklimaat ","je laat zien dat je weet hoe het klimaat in de groep \nis",null,null,0,0,0,0]
[null,null,null,"je laat zien dat je weet wat nodig is om het \ngroepsklimaat te bevorderen"]
[null,null,null,"je hebt een activiteit ontworpen die doelgericht \nhet groepsklimaat bevordert"]
[]
[null,"5.","Je hebt een sensitieve en responsieve houding en realiseert een veilige ontwikkelingsgerichte omgeving","je luistert en kijkt goed naar kinderen",null,null,0,0,0,0]
[null,null,null,"je reageert passend"]
[null,null,null,"je maakt actief contact met kinderen en bevordert \ninteractie met en tussen kinderen"]
[null,null,null,"je geeft kinderen complimenten"]
[]
[null,"6.","Je gaat in de activiteit uit van, houdt rekening met en biedt ruimte aan verschillen tussen kinderen","je laat zien dat je op de hoogte bent van verschillen in ontwikkelingsniveau en gedrag van de kinderen",null,null,{"$f":"COUNTIF(F28,\"1 punt\")*1","v":0},{"$f":"COUNTIF(F28,\"2 punten\")*2","v":0},{"$f":"COUNTIF(F28,\"3 punten\")*3","v":0},{"$f":"COUNTIF(F28,\"4 punten\")*4","v":0}]
[null,null,null,"de activiteit biedt ruimte aan de verschillen tussen de kinderen"]
[null,null,null,"de activiteit is uitdagend voor en biedt ontwikkelkansen aan de verschillende kinderen"]
[]
[null,"7.","In je begeleiding schakel je flexibel tussen de behoeften van het individuele kind en de groep als geheel","Je hebt oog voor het individuele kind en begeleidt deze",null,null,{"$f":"COUNTIF(F32,\"1 punt\")*1","v":0},{"$f":"COUNTIF(F32,\"2 punten\")*2","v":0},{"$f":"COUNTIF(F32,\"3 punten\")*3","v":0},{"$f":"COUNTIF(F32,\"4 punten\")*4","v":0}]
[null,null,null,"Je hebt oog voor de groep als geheel en begeleidt \ndeze"]
[null,null,null,"Je schakelt flexibel en effectief tussen beide"]
[]
[null,"8.","Je signaleert behoefte aan specifieke zorg en zet dit om in passende begeleiding","je laat zien dat je behoefte aan specifieke zorg \nhebt gesignaleerd",null,null,{"$f":"COUNTIF(F36,\"1 punt\")*1","v":0},{"$f":"COUNTIF(F36,\"2 punten\")*2","v":0},{"$f":"COUNTIF(F36,\"3 punten\")*3","v":0},{"$f":"COUNTIF(F36,\"4 punten\")*4","v":0}]
[null,null,null,"de begeleidingsactiviteiten passen bij de \ngesignaleerde behoefte"]
[]
[null,"9.\nV","Je hebt recente bronnen gebruikt bij het ontwerpen van de activiteit","je laat zien dat je keuzes baseert op bronnen",null,null,{"$f":"COUNTIF(F39,\"1 punt\")*1","v":0},{"$f":"COUNTIF(F39,\"2 punten\")*2","v":0},{"$f":"COUNTIF(F39,\"3 punten\")*3","v":0},{"$f":"COUNTIF(F39,\"4 punten\")*4","v":0}]
[null,null,null,"je weet recente en kwalitatief goede bronnen te \nselecteren"]
[]
[null,"10.","Tijdens en na afloop van de activiteit evalueer je met de kinderen","je stelt kinderen tijdens en na afloop van de \nactiviteit vragen ter evaluatie",null,null,{"$f":"COUNTIF(F42,\"1 punt\")*1","v":0},{"$f":"COUNTIF(F42,\"2 punten\")*2","v":0},{"$f":"COUNTIF(F42,\"3 punten\")*3","v":0},{"$f":"COUNTIF(F42,\"4 punten\")*4","v":0}]
[null,null,null,"je formuleert op basis van de evaluatie aandachts-\npunten voor vervolgactiviteiten"]
[null,null,null,"je stelt waar nodig je (persoonlijke leer)doelen bij"]
[]
[null,"Totaalscore: (maximaal 40 punten : 2 =  maximaal 20 punten)"]
[null,{"$f":"SUM(G8:J44)","v":0},"punten",{"$f":"B47/2","v":0}]
[]
[]
[null,"Akkoord beoordelaar"]

{"sheet":"model 4","index":5,"n_rows":28,"n_cols":10,"rows_kept":28,"cut":false,"hidden":false,"merged":[[26,1,26,5],[27,1,27,5],[22,1,22,3],[5,1,9,1],[5,2,9,2],[5,5,9,5],[17,1,20,1],[17,2,20,2],[17,5,20,5],[0,1,0,2],[0,3,0,5],[1,1,1,2],[1,3,1,5],[2,1,2,5]]}
[null,"Naam student:",null,{"$f":"Eindtotaal!D4","v":0}]
[null,"Klas Iselinge:",null,{"$f":"Eindtotaal!D12","v":0}]
[null,"Beoordelingsmodel 4: Het gesprek"]
[]
[null,"Beoordelingsaspecten",null,"Je kunt denken aan:",null,"Score"]
[null,"1.","Je reflecteert op de uitgevoerde activiteit door zowel sterke als minder sterke punten van de activiteit te analyseren","je benoemt sterke punten",null,null,{"$f":"COUNTIF(F6,\"1 punt\")*1","v":0},{"$f":"COUNTIF(F6,\"2 punten\")*2","v":0},{"$f":"COUNTIF(F6,\"3 punten\")*3","v":0},{"$f":"COUNTIF(F6,\"4 punten\")*4","v":0}]
[null,null,null,"je benoemt minder sterke punten en aandachts-\npunten"]
[null,null,null,"je komt met het benoemen van deze punten tot de \nkern"]
[null,null,null,"je reflecteert kritisch op je eigen gedrag"]
[null,null,null,"je benoemt concreet wat je deed en welke gevolgen \ndat had"]
[]
[null,"2.","Je beoordeelt de mate waarin de activiteit zijn doel bereikt heeft","je geeft met voorbeelden aan op welke manier en \nin welke mate de doelen van de activiteit bereikt zijn",null,null,{"$f":"COUNTIF(F12,\"1 punt\")*1","v":0},{"$f":"COUNTIF(F12,\"2 punten\")*2","v":0},{"$f":"COUNTIF(F12,\"3 punten\")*3","v":0},{"$f":"COUNTIF(F12,\"4 punten\")*4","v":0}]
[]
[null,"3.","Je evalueert de mate waarin je persoonlijke leerdoel(en) tijdens de activiteit bereikt is/zijn","je geeft met voorbeelden aan op welke manier en \nin welke mate je persoonlijke leerdoelen bereikt zijn",null,null,0,0,0,0]
[]
[null,"4.","Je formuleert op basis van ervaringen tijdens de activiteit een nieuw persoonlijk leerdoel dat past bij deze fase van de opleiding","je stelt je persoonlijke leerdoel bij en/of je stelt \nnieuwe persoonlijke leerdoelen die passen bij deze \nfase van de opleiding",null,null,0,0,0,0]
[]
[null,"5.","Je reflecteert op je eigen handelen en communiceert hier open over naar leidinggevenden en collega’s","je laat zien dat je kritisch naar jezelf kijkt",null,null,{"$f":"COUNTIF(F18,\"1 punt\")*1","v":0},{"$f":"COUNTIF(F18,\"2 punten\")*2","v":0},{"$f":"COUNTIF(F18,\"3 punten\")*3","v":0},{"$f":"COUNTIF(F18,\"4 punten\")*4","v":0}]
[null,null,null,"je bent eerlijk over wat al goed gaat en wat nog \nniet"]
[null,null,null,"je gaat het gesprek aan over je eigen handelen met \nje leidinggevende"]
[null,null,null,"je vraagt feedback op je handelen aan je collega’s"]
[]
[null,"Totaalscore: maximaal 20 punten x 2 = maximaal 40 punten"]
[null,{"$f":"SUM(G6:K18)","v":0},"punten",{"$f":"B24*2","v":0}]
[]
[null,"Opmerkingen"]
[]
[null,"Akkoord beoordelaar"]